bitfinex/quotes_ETHUSD_20250608
["timestamp","ask_amount","ask_price","bid_price","bid_amount"]
[1749417551502,7.3171808,2536.8,2536.7,3.94212953]
[1749417551688,0.9451808,2536.8,2536.7,19.94212953]
[1749417551899,7.3191808,2536.8,2536.7,19.94212953]
[1749417552307,7.68843825,2536.8,2536.7,19.94212953]
[1749417552507,7.3191808,2536.8,2536.7,19.94212953]
[1749417557022,7.3191808,2536.8,2536.7,16.0]
[1749417557611,7.3191808,2536.8,2536.7,19.94212953]
[1749417558437,0.9451808,2536.8,2536.7,19.94212953]
[1749417558642,7.3161808,2536.8,2536.7,19.94212953]
[1749417564236,0.9451808,2536.8,2536.7,19.94212953]
[1749417566033,6.375,2537.1,2537.0,19.94166338]
[1749417566357,7.68795057,2537.1,2537.0,19.94166338]
[1749417566646,7.31916265,2537.1,2537.0,19.94166338]
[1749417566865,8.86970434,2537.1,2537.0,19.94166338]
[1749417567154,7.31916265,2537.1,2537.0,19.94166338]
[1749417567449,8.50092593,2537.1,2537.0,19.94166338]
[1749417567652,8.86970672,2537.1,2537.0,19.94166338]
[1749417567814,7.68794344,2537.1,2537.0,19.94166338]
[1749417568151,7.31916265,2537.1,2537.0,19.94166338]
[1749417568327,8.50092593,2537.1,2537.0,19.94166338]
[1749417568509,7.68794071,2537.1,2537.0,16.0]
[1749417568713,8.86970388,2537.1,2537.0,16.0]
[1749417568968,8.50092593,2537.1,2537.0,16.0]
[1749417569317,8.86970822,2537.1,2537.0,16.0]
[1749417569657,2.12592593,2537.1,2537.0,19.94166338]
[1749417569815,0.94416265,2537.1,2537.0,19.94166338]
[1749417571712,1.31306572,2537.1,2537.0,19.94166338]
[1749417571993,7.68516799,2537.1,2537.0,19.94166338]
[1749417572207,7.31616265,2537.1,2537.0,19.94166338]
[1749417572703,7.68516617,2537.1,2537.0,19.94166338]
[1749417572880,7.68516618,2537.1,2537.0,19.94166338]
[1749417573612,0.94416265,2537.1,2537.0,19.94166338]
[1749417578391,0.94477168,2537.1,2537.0,19.94166338]
[1749417579350,0.94477168,2537.1,2537.0,25.4063423]
[1749417580471,1.63,2537.5,2537.4,3.94104201]
[1749417580472,1.1809646,2537.5,2537.4,3.94104201]
[1749417580669,7.68330954,2537.5,2537.4,19.94104201]
[1749417580894,7.31445205,2537.5,2537.4,19.94104201]
[1749417583314,0.94445205,2537.5,2537.4,19.94104201]
[1749417583461,7.31945205,2537.5,2537.4,19.94104201]
[1749417583663,6.375,2537.5,2537.4,19.94104201]
[1749417583861,7.31868078,2537.5,2537.4,19.94104201]
[1749417585815,0.94368078,2537.5,2537.4,19.94104201]
[1749417585983,7.31668078,2537.5,2537.4,19.94104201]
[1749417589432,7.31604912,2537.5,2537.4,19.94104201]
[1749417594504,0.94304912,2537.5,2537.4,19.94104201]
[1749417599387,6.368,2537.6,2537.5,16.0]
[1749417599587,7.31173865,2537.6,2537.5,16.0]
[1749417600689,7.31173865,2537.6,2537.5,3.94088669]
[1749417601600,7.30873865,2537.6,2537.5,3.94088669]
[1749417603435,7.67743929,2537.6,2537.5,3.94088669]
[1749417604231,7.67747377,2537.6,2537.5,3.94088669]
[1749417604435,7.30873865,2537.6,2537.5,3.94088669]
[1749417604638,8.48842204,2537.6,2537.5,3.94088669]
[1749417604835,7.30873865,2537.6,2537.5,3.94088669]
[1749417605431,8.48842204,2537.6,2537.5,3.94088669]
[1749417605840,8.85727097,2537.6,2537.5,3.94088669]
[1749417606027,8.85726924,2537.6,2537.5,3.94088669]
[1749417606229,8.48842204,2537.6,2537.5,3.94088669]
[1749417606733,8.85727393,2537.6,2537.5,3.94088669]
[1749417606913,8.48842204,2537.6,2537.5,3.94088669]
[1749417607539,8.85727211,2537.6,2537.5,3.94088669]
[1749417608261,8.48842204,2537.6,2537.5,3.94088669]
[1749417608596,8.85754887,2537.6,2537.5,3.94088669]
[1749417608804,7.67786507,2537.6,2537.5,3.94088669]
[1749417609015,8.85973725,2537.6,2537.5,3.94088669]
[1749417609406,7.30873865,2537.6,2537.5,19.94088669]
[1749417609807,7.67790324,2537.6,2537.5,19.94088669]
[1749417610942,8.0473894,2537.6,2537.5,19.94088669]
[1749417611348,8.04738994,2537.6,2537.5,19.94088669]
[1749417611519,8.04738678,2537.6,2537.5,19.94088669]
[1749417611840,7.67790324,2537.6,2537.5,19.94088669]
[1749417612647,1.68238444,2537.6,2537.5,19.94088669]
[1749417612807,8.0423849,2537.6,2537.5,19.94088669]
[1749417613141,8.04238551,2537.6,2537.5,19.94088669]
[1749417613328,7.67290324,2537.6,2537.5,19.94088669]
[1749417614225,8.04238403,2537.6,2537.5,19.94088669]
[1749417615046,7.67290324,2537.6,2537.5,19.94088669]
[1749417615904,8.04237371,2537.6,2537.5,19.94088669]
[1749417616150,9.2246624,2537.6,2537.5,19.94088669]
[1749417617110,9.22464756,2537.6,2537.5,19.94088669]
[1749417617310,8.85519193,2537.6,2537.5,19.94088669]
[1749417617817,9.22464801,2537.6,2537.5,19.94088669]
[1749417618317,9.22464665,2537.6,2537.5,19.94088669]
[1749417618642,8.85519193,2537.6,2537.5,19.94088669]
[1749417619411,9.22464126,2537.6,2537.5,19.94088669]
[1749417619937,9.22464004,2537.6,2537.5,19.94088669]
[1749417620138,9.22063992,2537.6,2537.5,19.94088669]
[1749417620374,9.22063825,2537.6,2537.5,19.94088669]
[1749417620575,8.85119193,2537.6,2537.5,19.94088669]
[1749417621375,9.22063724,2537.6,2537.5,19.94088669]
[1749417621575,2.86463724,2537.6,2537.5,19.94088669]
[1749417621779,8.03834855,2537.6,2537.5,19.94088669]
[1749417621959,8.03824479,2537.6,2537.5,19.94088669]
[1749417622162,8.0382444,2537.6,2537.5,19.94088669]
[1749417622340,8.03824496,2537.6,2537.5,19.94088669]
[1749417622540,7.66890324,2537.6,2537.5,19.94088669]
[1749417622884,8.03824312,2537.6,2537.5,19.94088669]
[1749417623054,8.03824243,2537.6,2537.5,19.94088669]
[1749417623584,8.03817517,2537.6,2537.5,19.94088669]
[1749417623883,1.31290324,2537.6,2537.5,19.94088669]
[1749417624592,1.68217506,2537.6,2537.5,19.94088669]
[1749417624793,1.31290324,2537.6,2537.5,19.94088669]
[1749417625079,1.68217419,2537.6,2537.5,19.94088669]
[1749417625258,1.68217529,2537.6,2537.5,19.94088669]
[1749417625456,1.6821496,2537.6,2537.5,19.94088669]
[1749417625665,1.31290324,2537.6,2537.5,19.94088669]
[1749417626390,1.68213604,2537.6,2537.5,19.94088669]
[1749417626544,1.31290324,2537.6,2537.5,19.94088669]
[1749417626752,1.68213636,2537.6,2537.5,19.94088669]
[1749417627547,1.31290324,2537.6,2537.5,19.94088669]
[1749417627756,1.68213369,2537.6,2537.5,19.94088669]
[1749417627980,1.31290324,2537.6,2537.5,19.94088669]
[1749417628548,1.68213353,2537.6,2537.5,19.94088669]
[1749417629049,1.68213719,2537.6,2537.5,19.94088669]
[1749417629251,1.6821362,2537.6,2537.5,19.94088669]
[1749417629508,1.31290324,2537.6,2537.5,24.73723753]
[1749417629696,1.84895536,2538.2,2537.6,20.77181627]
[1749417629853,0.8179,2538.1,2537.8,19.94026657]
[1749417630192,0.8179,2538.1,2537.9,3.94026557]
[1749417630193,6.365,2538.0,2537.9,3.94026557]
[1749417630565,7.54728869,2538.0,2537.8,3.9403364]
[1749417630760,7.54728869,2538.0,2537.4,4.77207072]
[1749417630761,7.54728869,2538.0,2537.9,19.94026557]
[1749417631151,9.00457329,2538.0,2537.9,16.0]
[1749417631353,9.82247329,2538.0,2537.9,16.0]
[1749417631870,14.33772413,2538.0,2537.6,3.94067438]
[1749417632076,2.80528869,2537.9,2537.7,3.94049418]
[1749417632357,6.368,2537.8,2537.7,19.94049418]
[1749417636001,6.368,2537.8,2537.7,19.94057611]
[1749417636458,6.368,2537.8,2537.7,16.0]
[1749417637404,6.368,2537.8,2537.7,19.94057611]
[1749417641816,7.31267844,2537.8,2537.7,19.94057611]
[1749417642108,7.31267436,2537.8,2537.7,19.94057611]
[1749417642681,7.6817972,2537.8,2537.7,19.94057611]
[1749417643300,8.86264799,2537.8,2537.7,19.94057611]
[1749417643501,7.6818062,2537.8,2537.7,19.94057611]
[1749417643669,7.68180445,2537.8,2537.7,19.94057611]
[1749417643865,7.31267436,2537.8,2537.7,19.94057611]
[1749417644071,7.68180725,2537.8,2537.7,19.94057611]
[1749417644408,8.8626502,2537.8,2537.7,19.94057611]
[1749417644615,7.68180725,2537.8,2537.7,19.94057611]
[1749417644917,0.8288,2537.6,2537.3,3.94112489]
[1749417645205,8.49384018,2537.5,2537.3,3.94112489]
[1749417645522,0.94467436,2537.4,2537.3,19.94112489]
[1749417645899,1.3139202,2537.4,2537.3,19.94112489]
[1749417646085,0.94467436,2537.4,2537.3,19.94112489]
[1749417646286,1.31392144,2537.4,2537.3,19.94112489]
[1749417646619,0.94467436,2537.4,2537.3,19.94112489]
[1749417646916,1.31395605,2537.4,2537.3,19.94112489]
[1749417647283,1.31395605,2537.4,2537.3,16.0]
[1749417647284,0.94467436,2537.4,2537.3,16.0]
[1749417647784,2.95464018,2537.4,2537.3,16.0]
[1749417648107,3.32393516,2537.4,2537.3,16.0]
[1749417648323,1.77347436,2537.4,2537.3,16.0]
[1749417648614,3.39647436,2537.4,2537.3,16.0]
[1749417649001,3.76545962,2537.4,2537.3,16.0]
[1749417649206,4.57764018,2537.4,2537.3,16.0]
[1749417649410,3.76546133,2537.4,2537.3,16.0]
[1749417649713,3.76546113,2537.4,2537.3,16.0]
[1749417649877,6.23911413,2537.4,2537.3,16.0]
[1749417650081,7.42027995,2537.4,2537.3,16.0]
[1749417650312,10.18015614,2537.4,2537.3,16.0]
[1749417650503,7.42010893,2537.4,2537.3,16.0]
[1749417650700,11.54233519,2537.4,2537.3,16.0]
[1749417651508,11.91115933,2537.4,2537.3,16.0]
[1749417652010,11.91112318,2537.4,2537.3,16.0]
[1749417652504,11.54233519,2537.4,2537.3,16.0]
[1749417652703,11.9111217,2537.4,2537.3,16.0]
[1749417652893,11.54233519,2537.4,2537.3,16.0]
[1749417653391,11.91108095,2537.4,2537.3,16.0]
[1749417653975,11.91091679,2537.4,2537.3,16.0]
[1749417654217,11.54233519,2537.4,2537.3,16.0]
[1749417654413,11.91091847,2537.4,2537.3,16.0]
[1749417654618,11.54233519,2537.4,2537.3,16.0]
[1749417654820,11.91091728,2537.4,2537.3,16.0]
[1749417655857,11.91078367,2537.4,2537.3,16.0]
[1749417655983,3.94151441,2537.1,2536.7,3.94203433]
[1749417656185,7.31167436,2537.0,2536.7,3.94203433]
[1749417656490,0.94467436,2536.9,2536.8,16.0]
[1749417657318,0.94467436,2536.9,2536.8,19.94197414]
[1749417658414,6.367,2537.0,2536.8,19.94197414]
[1749417667729,7.1758,2537.0,2536.6,20.3407774]
[1749417667924,7.1758,2537.0,2536.6,16.0]
[1749417667925,1.49272187,2536.9,2536.6,16.0]
[1749417668161,8.93475331,2536.8,2536.6,16.0]
[1749417668354,7.992,2536.8,2536.6,16.0]
[1749417671345,0.9431488,2536.7,2536.6,16.0]
[1749417671545,7.992,2536.8,2536.6,16.0]
[1749417672246,0.94334947,2536.7,2536.6,16.0]
[1749417673041,1.75284947,2536.7,2536.4,3.94257263]
[1749417673249,7.30633308,2536.6,2536.0,4.79060047]
[1749417673481,0.94333308,2536.5,2536.4,16.0]
[1749417674459,1.31224599,2536.5,2536.4,16.0]
[1749417674665,1.31224656,2536.5,2536.4,16.0]
[1749417674863,0.94333308,2536.5,2536.4,16.0]
[1749417675059,0.94333308,2536.5,2536.4,3.9425958]
[1749417675260,0.94333308,2536.5,2536.3,3.94270531]
[1749417675487,7.30533308,2536.4,2536.3,3.94270531]
[1749417675902,13.27126328,2536.4,2535.7,6.27722093]
[1749417676143,0.94333308,2536.3,2536.1,3.94295915]
[1749417676339,7.30633308,2536.2,2536.1,19.94295915]
[1749417681566,8.07403308,2536.2,2535.6,28.63432093]
[1749417681726,0.94333308,2536.1,2535.9,3.94325034]
[1749417681912,6.363,2536.2,2535.9,3.94325034]
[1749417682107,0.94269457,2536.1,2535.9,3.94325034]
[1749417682359,6.363,2536.2,2535.9,3.94325034]
[1749417682558,0.94273731,2536.1,2536.0,3.94321766]
[1749417682713,0.94273731,2536.1,2535.9,19.94328504]
[1749417682913,6.363,2536.2,2535.9,19.94328504]
[1749417683150,0.94255229,2536.1,2535.9,19.94328504]
[1749417683477,6.363,2536.2,2535.9,19.94328504]
[1749417683648,0.9424772,2536.1,2535.9,19.94328504]
[1749417683846,6.363,2536.2,2535.9,19.94328504]
[1749417684052,0.94247718,2536.1,2535.9,19.94328504]
[1749417684211,6.363,2536.2,2535.9,19.94328504]
[1749417684411,0.94256154,2536.1,2535.9,19.94328504]
[1749417684635,6.363,2536.2,2535.9,19.94328504]
[1749417684824,0.94245184,2536.1,2535.9,19.94328504]
[1749417685025,6.363,2536.2,2535.9,19.94328504]
[1749417685239,0.94245172,2536.1,2535.9,19.94328504]
[1749417685459,6.363,2536.2,2535.9,19.94328504]
[1749417685612,0.94247415,2536.1,2535.9,19.94328504]
[1749417685813,6.363,2536.2,2535.9,19.94328504]
[1749417686116,0.94247404,2536.1,2535.9,19.94328504]
[1749417686318,6.363,2536.2,2535.9,19.94328504]
[1749417686637,0.94247432,2536.1,2535.9,19.94328504]
[1749417686839,6.363,2536.2,2535.9,19.94328504]
[1749417687026,0.9424101,2536.1,2535.9,19.94328504]
[1749417687228,6.363,2536.2,2535.9,19.94328504]
[1749417687434,0.94241721,2536.1,2535.9,19.94328504]
[1749417687635,6.363,2536.2,2535.9,19.94328504]
[1749417687856,0.94237147,2536.1,2535.9,19.94328504]
[1749417688156,6.363,2536.2,2535.9,19.94328504]
[1749417688353,0.94238881,2536.1,2535.9,19.94328504]
[1749417688559,6.363,2536.2,2535.9,19.94328504]
[1749417688747,0.94235903,2536.1,2535.9,19.94328504]
[1749417688951,6.363,2536.2,2535.9,19.94328504]
[1749417689135,0.94235888,2536.1,2535.9,19.94328504]
[1749417689454,6.363,2536.2,2535.9,19.94328504]
[1749417689657,0.94239738,2536.1,2535.9,19.94328504]
[1749417689950,6.363,2536.2,2535.9,19.94328504]
[1749417690152,0.94237887,2536.1,2535.9,19.94328504]
[1749417690358,6.363,2536.2,2535.9,19.94328504]
[1749417690558,0.94238198,2536.1,2535.9,19.94328504]
[1749417690735,6.363,2536.2,2535.9,19.94328504]
[1749417690935,0.94237381,2536.1,2535.9,19.94328504]
[1749417691147,6.363,2536.2,2535.9,19.94328504]
[1749417691457,0.94237367,2536.1,2535.8,19.9434415]
[1749417691754,6.363,2536.2,2535.9,3.94336917]
[1749417692062,0.9424407,2536.1,2535.9,3.94336917]
[1749417692257,6.363,2536.2,2535.9,3.94336917]
[1749417692559,0.94244367,2536.1,2535.8,19.94343933]
[1749417692760,6.363,2536.2,2535.8,19.94343933]
[1749417692933,0.94254399,2536.1,2535.9,3.94335318]
[1749417693139,6.363,2536.2,2535.9,3.94335318]
[1749417693353,0.94254506,2536.1,2535.9,3.94335318]
[1749417693553,6.363,2536.2,2536.0,3.94321137]
[1749417693721,0.94266704,2536.1,2536.0,3.94321137]
[1749417694129,0.94266704,2536.1,2535.9,3.94329602]
[1749417694350,6.363,2536.2,2535.9,3.94329602]
[1749417694566,0.94266158,2536.1,2536.0,19.94314293]
[1749417694972,0.94282572,2536.1,2536.0,19.94314293]
[1749417695275,6.363,2536.2,2536.0,19.94314293]
[1749417695671,0.94303151,2536.1,2536.0,19.94314293]
[1749417704780,1.31250821,2536.1,2536.0,19.94314293]
[1749417705079,0.94303151,2536.1,2536.0,19.94314293]
[1749417705486,1.31251036,2536.1,2536.0,19.94314293]
[1749417705859,1.31250762,2536.1,2536.0,19.94314293]
[1749417706288,0.94303151,2536.1,2536.0,19.94314293]
[1749417706642,1.31250857,2536.1,2536.0,19.94314293]
[1749417706887,0.94303151,2536.1,2536.0,19.94314293]
[1749417707186,1.31251112,2536.1,2536.0,19.94314293]
[1749417707561,1.31255216,2536.1,2536.0,19.94314293]
[1749417708085,0.94303151,2536.1,2536.0,19.94314293]
[1749417708659,1.31255048,2536.1,2536.0,19.94314293]
[1749417709588,1.31260425,2536.1,2536.0,19.94314293]
[1749417709950,0.94303151,2536.1,2536.0,19.94314293]
[1749417710190,1.31260425,2536.1,2536.0,19.94314293]
[1749417710351,0.94303151,2536.1,2536.0,19.94314293]
[1749417710553,1.31260358,2536.1,2536.0,19.94314293]
[1749417711089,7.66660547,2536.1,2536.0,19.94314293]
[1749417711265,7.29703151,2536.1,2536.0,19.94314293]
[1749417711589,7.30016988,2536.1,2536.0,19.94314293]
[1749417711789,7.66974249,2536.1,2536.0,19.94314293]
[1749417712089,7.66974301,2536.1,2536.0,19.94314293]
[1749417712267,7.66974902,2536.1,2536.0,19.94314293]
[1749417712686,7.66975022,2536.1,2536.0,19.94314293]
[1749417712985,8.48288223,2536.1,2536.0,19.94314293]
[1749417713891,8.8524653,2536.1,2536.0,19.94314293]
[1749417714392,8.8524707,2536.1,2536.0,19.94314293]
[1749417714780,8.85247194,2536.1,2536.0,19.94314293]
[1749417715091,8.48288223,2536.1,2536.0,19.94314293]
[1749417715269,8.85246815,2536.1,2536.0,19.94314293]
[1749417715452,8.48288223,2536.1,2536.0,19.94314293]
[1749417715658,8.85246815,2536.1,2536.0,19.94314293]
[1749417715858,8.85247024,2536.1,2536.0,19.94314293]
[1749417716205,8.48288223,2536.1,2536.0,19.94314293]
[1749417716794,8.85247491,2536.1,2536.0,19.94314293]
[1749417716972,8.85247376,2536.1,2536.0,19.94314293]
[1749417717180,8.48288223,2536.1,2536.0,19.94314293]
[1749417717394,8.8524762,2536.1,2536.0,19.94314293]
[1749417717921,8.85247617,2536.1,2536.0,19.94314293]
[1749417718098,8.8524762,2536.1,2536.0,19.94314293]
[1749417718303,8.48288223,2536.1,2536.0,19.94314293]
[1749417718505,8.85248633,2536.1,2536.0,19.94314293]
[1749417718691,8.85248639,2536.1,2536.0,19.94314293]
[1749417719369,2.12888223,2536.1,2536.0,19.94314293]
[1749417719574,7.66777692,2536.1,2536.0,20.92907377]
[1749417719812,7.29822495,2536.1,2536.0,20.92907377]
[1749417720313,7.29822495,2536.1,2536.0,19.94314293]
[1749417720825,7.6678249,2536.1,2536.0,19.94314293]
[1749417721087,7.29822495,2536.1,2536.0,19.94314293]
[1749417722330,7.66784247,2536.1,2536.0,19.94314293]
[1749417722832,7.66784362,2536.1,2536.0,19.94314293]
[1749417723033,8.850627,2536.1,2536.0,19.94314293]
[1749417723236,8.48100614,2536.1,2536.0,19.94314293]
[1749417724036,8.85070168,2536.1,2536.0,19.94314293]
[1749417724241,8.85070273,2536.1,2536.0,19.94314293]
[1749417724401,8.85070326,2536.1,2536.0,19.94314293]
[1749417724731,8.85070201,2536.1,2536.0,19.94314293]
[1749417724953,8.48100614,2536.1,2536.0,19.94314293]
[1749417725313,8.8507054,2536.1,2536.0,19.94314293]
[1749417726348,8.85070616,2536.1,2536.0,19.94314293]
[1749417726510,8.8507033,2536.1,2536.0,19.94314293]
[1749417726710,8.85070559,2536.1,2536.0,19.94314293]
[1749417728011,8.8507086,2536.1,2536.0,19.94314293]
[1749417728211,8.48100614,2536.1,2536.0,19.94314293]
[1749417728851,8.85070009,2536.1,2536.0,19.94314293]
[1749417729526,8.85070124,2536.1,2536.0,19.94314293]
[1749417729844,8.48100614,2536.1,2536.0,19.94314293]
[1749417730251,8.85070152,2536.1,2536.0,19.94314293]
[1749417730449,8.85070287,2536.1,2536.0,19.94314293]
[1749417730847,8.85070229,2536.1,2536.0,19.94314293]
[1749417731059,8.48100614,2536.1,2536.0,19.94314293]
[1749417731355,8.48100614,2536.1,2536.0,19.94321766]
[1749417731517,8.85070938,2536.1,2536.0,19.94321766]
[1749417731715,8.48100614,2536.1,2536.0,19.94321766]
[1749417732053,8.85071207,2536.1,2536.0,19.94321766]
[1749417732239,8.85071054,2536.1,2536.0,19.94321766]
[1749417732463,8.48100614,2536.1,2536.0,19.94321766]
[1749417732775,8.85070811,2536.1,2536.0,19.94321766]
[1749417732975,8.85070731,2536.1,2536.0,19.94321766]
[1749417733143,8.48100614,2536.1,2536.0,19.94321766]
[1749417734051,8.85070363,2536.1,2536.0,19.94321766]
[1749417734452,8.85070643,2536.1,2536.0,19.94321766]
[1749417734654,8.48100614,2536.1,2536.0,19.94321766]
[1749417734961,8.8507073,2536.1,2536.0,19.94321766]
[1749417735160,8.48100614,2536.1,2536.0,19.94321766]
[1749417735365,8.85070613,2536.1,2536.0,19.94321766]
[1749417736040,2.49870613,2536.1,2536.0,19.94321766]
[1749417736258,8.48000614,2536.1,2536.0,19.94321766]
[1749417737250,8.84969732,2536.1,2536.0,19.94321766]
[1749417737881,8.84969502,2536.1,2536.0,19.94321766]
[1749417738047,8.84968838,2536.1,2536.0,19.94321766]
[1749417738247,8.84968893,2536.1,2536.0,19.94321766]
[1749417738470,8.48000614,2536.1,2536.0,19.94321766]
[1749417738870,8.84968713,2536.1,2536.0,19.94321766]
[1749417739577,8.84968927,2536.1,2536.0,19.94321766]
[1749417739780,8.48000614,2536.1,2536.0,19.94321766]
[1749417740388,8.84969156,2536.1,2536.0,19.94321766]
[1749417740742,8.48000614,2536.1,2536.0,19.94321766]
[1749417740946,8.84968905,2536.1,2536.0,19.94321766]
[1749417741189,8.48000614,2536.1,2536.0,19.94321766]
[1749417741491,8.84968642,2536.1,2536.0,19.94321766]
[1749417741656,8.48000614,2536.1,2536.0,19.94321766]
[1749417742083,8.84968573,2536.1,2536.0,19.94321766]
[1749417742256,8.48000614,2536.1,2536.0,19.94321766]
[1749417742562,8.84968573,2536.1,2536.0,19.94321766]
[1749417743064,8.48000614,2536.1,2536.0,19.94321766]
[1749417743257,8.84969062,2536.1,2536.0,19.94321766]
[1749417743465,8.48000614,2536.1,2536.0,19.94321766]
[1749417743872,8.84968936,2536.1,2536.0,19.94321766]
[1749417744588,8.84968823,2536.1,2536.0,19.94321766]
[1749417744884,8.84968783,2536.1,2536.0,19.94321766]
[1749417745195,8.84968588,2536.1,2536.0,19.94321766]
[1749417746404,8.84968811,2536.1,2536.0,19.94321766]
[1749417746550,8.84968558,2536.1,2536.0,19.94321766]
[1749417746751,8.48000614,2536.1,2536.0,19.94321766]
[1749417747147,8.84968619,2536.1,2536.0,19.94321766]
[1749417747790,8.48000614,2536.1,2536.0,19.94321766]
[1749417747992,8.84968697,2536.1,2536.0,19.94321766]
[1749417748186,8.48000614,2536.1,2536.0,19.94321766]
[1749417748392,8.84968816,2536.1,2536.0,19.94321766]
[1749417748688,8.84969223,2536.1,2536.0,19.94321766]
[1749417749356,8.84968864,2536.1,2536.0,19.94321766]
[1749417749551,8.84968788,2536.1,2536.0,19.94321766]
[1749417749771,8.84968846,2536.1,2536.0,19.94321766]
[1749417749970,8.48000614,2536.1,2536.0,19.94321766]
[1749417751516,2.12900614,2536.1,2536.0,20.76891766]
[1749417751718,8.48000614,2536.1,2536.0,20.76891766]
[1749417752220,8.84968685,2536.1,2536.0,20.76891766]
[1749417752516,8.48000614,2536.1,2536.0,20.76891766]
[1749417752915,8.48000614,2536.1,2536.0,19.94321766]
[1749417753274,7.29741043,2536.1,2536.0,19.94321766]
[1749417753476,8.48042347,2536.1,2536.0,19.94321766]
[1749417753889,8.85011273,2536.1,2536.0,19.94321766]
[1749417754309,8.85011182,2536.1,2536.0,19.94321766]
[1749417754515,8.48042347,2536.1,2536.0,19.94321766]
[1749417755581,8.85010776,2536.1,2536.0,19.94321766]
[1749417755818,8.8501083,2536.1,2536.0,19.94321766]
[1749417756134,8.85010907,2536.1,2536.0,19.94321766]
[1749417756273,8.48042347,2536.1,2536.0,19.94321766]
[1749417756687,7.29741043,2536.1,2536.0,19.94321766]
[1749417756918,8.48042347,2536.1,2536.0,19.94321766]
[1749417757123,8.85010661,2536.1,2536.0,19.94321766]
[1749417757719,8.85010038,2536.1,2536.0,19.94321766]
[1749417757919,8.48042347,2536.1,2536.0,19.94321766]
[1749417758724,8.85010118,2536.1,2536.0,19.94321766]
[1749417758888,8.8501026,2536.1,2536.0,19.94321766]
[1749417759183,8.85010068,2536.1,2536.0,19.94321766]
[1749417759388,8.85010372,2536.1,2536.0,19.94321766]
[1749417759609,8.85010233,2536.1,2536.0,19.94321766]
[1749417759818,8.48042347,2536.1,2536.0,19.94321766]
[1749417760012,8.85010347,2536.1,2536.0,19.94321766]
[1749417760178,8.48042347,2536.1,2536.0,19.94321766]
[1749417760370,8.85011205,2536.1,2536.0,19.94321766]
[1749417761116,8.85010928,2536.1,2536.0,19.94321766]
[1749417761295,8.48042347,2536.1,2536.0,19.94321766]
[1749417762030,8.85010931,2536.1,2536.0,19.94321766]
[1749417762991,8.48042347,2536.1,2536.0,19.94321766]
[1749417763749,8.85011222,2536.1,2536.0,19.94321766]
[1749417764219,7.66709918,2536.1,2536.0,19.94321766]
[1749417764423,8.85010587,2536.1,2536.0,19.94321766]
[1749417764605,8.48042347,2536.1,2536.0,19.94321766]
[1749417765133,8.85010703,2536.1,2536.0,19.94321766]
[1749417765624,8.85010638,2536.1,2536.0,19.94321766]
[1749417765928,7.66709334,2536.1,2536.0,19.94321766]
[1749417766121,8.85011096,2536.1,2536.0,19.94321766]
[1749417766330,8.48042347,2536.1,2536.0,19.94321766]
[1749417767111,8.85011305,2536.1,2536.0,19.94321766]
[1749417767786,8.85012141,2536.1,2536.0,19.94321766]
[1749417767986,8.48042347,2536.1,2536.0,19.94321766]
[1749417768602,8.85012262,2536.1,2536.0,19.94321766]
[1749417769282,8.85012561,2536.1,2536.0,19.94321766]
[1749417769524,8.85012503,2536.1,2536.0,19.94321766]
[1749417769732,8.48042347,2536.1,2536.0,19.94321766]
[1749417769893,8.850125,2536.1,2536.0,19.94321766]
[1749417770115,8.85012442,2536.1,2536.0,19.94321766]
[1749417770313,8.48042347,2536.1,2536.0,19.94321766]
[1749417770528,8.85012502,2536.1,2536.0,19.94321766]
[1749417770945,8.48042347,2536.1,2536.0,19.94321766]
[1749417771318,8.85012331,2536.1,2536.0,19.94321766]
[1749417771519,8.48042347,2536.1,2536.0,19.94321766]
[1749417771941,8.85012268,2536.1,2536.0,19.94321766]
[1749417772316,8.85012486,2536.1,2536.0,19.94321766]
[1749417772650,8.48042347,2536.1,2536.0,19.94321766]
[1749417772810,8.85012474,2536.1,2536.0,19.94321766]
[1749417773013,8.48042347,2536.1,2536.0,19.94321766]
[1749417773768,8.85012705,2536.1,2536.0,19.94321766]
[1749417774147,8.85013195,2536.1,2536.0,19.94321766]
[1749417774449,8.85013477,2536.1,2536.0,19.94321766]
[1749417774650,8.48042347,2536.1,2536.0,19.94321766]
[1749417775652,8.85013394,2536.1,2536.0,19.94321766]
[1749417775811,8.85013271,2536.1,2536.0,19.94321766]
[1749417776013,8.48042347,2536.1,2536.0,19.94321766]
[1749417776235,8.85013272,2536.1,2536.0,19.94321766]
[1749417776438,8.48042347,2536.1,2536.0,19.94321766]
[1749417776841,8.85013077,2536.1,2536.0,19.94321766]
[1749417777049,8.85013206,2536.1,2536.0,19.94321766]
[1749417777722,8.85012461,2536.1,2536.0,19.94321766]
[1749417777917,8.48042347,2536.1,2536.0,19.94321766]
[1749417778454,8.85011882,2536.1,2536.0,19.94321766]
[1749417778957,8.48042347,2536.1,2536.0,19.94321766]
[1749417780361,8.85012,2536.1,2536.0,19.94321766]
[1749417780658,8.85015386,2536.1,2536.0,19.94321766]
[1749417781018,8.48045733,2536.1,2536.0,19.94321766]
[1749417781219,8.85015558,2536.1,2536.0,19.94321766]
[1749417781460,8.48045733,2536.1,2536.0,16.0]
[1749417781756,8.85014759,2536.1,2536.0,19.94321766]
[1749417781967,8.85014691,2536.1,2536.0,19.94321766]
[1749417782134,8.85014691,2536.1,2536.0,16.0]
[1749417782334,7.66713468,2536.1,2536.0,16.0]
[1749417782857,8.48038758,2536.1,2536.0,16.0]
[1749417783267,7.6671301,2536.1,2536.0,16.0]
[1749417783490,7.29742548,2536.1,2536.0,16.0]
[1749417783769,8.85000552,2536.1,2536.0,16.0]
[1749417783934,8.85000439,2536.1,2536.0,16.0]
[1749417784138,7.6670755,2536.1,2536.0,16.0]
[1749417784464,7.29742548,2536.1,2536.0,16.0]
[1749417784758,8.48030868,2536.1,2536.0,19.94321766]
[1749417785352,8.48030907,2536.1,2536.0,19.94321766]
[1749417785548,8.84995349,2536.1,2536.0,19.94321766]
[1749417785957,8.84994627,2536.1,2536.0,19.94321766]
[1749417786143,8.48030907,2536.1,2536.0,19.94321766]
[1749417786362,8.84994699,2536.1,2536.0,19.94321766]
[1749417786680,8.84994564,2536.1,2536.0,19.94321766]
[1749417787680,8.84994258,2536.1,2536.0,19.94321766]
[1749417787878,8.84994309,2536.1,2536.0,19.94321766]
[1749417788073,8.48030907,2536.1,2536.0,19.94321766]
[1749417789082,8.84994281,2536.1,2536.0,19.94321766]
[1749417789453,8.84994129,2536.1,2536.0,19.94321766]
[1749417789775,8.84993922,2536.1,2536.0,19.94321766]
[1749417789979,8.48030907,2536.1,2536.0,19.94321766]
[1749417790173,8.84994037,2536.1,2536.0,19.94321766]
[1749417790379,8.48030907,2536.1,2536.0,19.94321766]
[1749417790683,8.8499388,2536.1,2536.0,19.94321766]
[1749417791182,8.84994336,2536.1,2536.0,19.94321766]
[1749417791384,8.48030907,2536.1,2536.0,19.94321766]
[1749417792450,8.84994354,2536.1,2536.0,19.94321766]